[Event "DVM U10 2024"]
[Site "Duesseldorf"]
[Date "2024.12.28"]
[Round "6"]
[White "Mätz, Mark"]
[Black "Wüstenberg, Felix"]
[Result "0-1"]
[ECO "C44"]
[WhiteElo "767"]
[BlackElo "975"]
[Annotator "NA RC"]
[PlyCount "110"]
[EventDate "2024.12.23"]
[EventType "team-tourn"]
[EventRounds "7"]
[EventCountry "GER"]
[SourceTitle "playchess.com"]
[Source "ChessBase"]
[SourceQuality "1"]
[TimeControl "3300+5"]

1. e4 {[%emt 0:00:01]} e5 {[%emt 0:00:06]} 2. Nf3 {[%emt 0:00:05]} Nc6 {[%emt 0:00:05]} 3. d4 {[%emt 0:00:08]} Nf6 {[%emt 0:00:27]} 4. d5 {[%emt 0:00:11]} Nd4 {[%emt 0:00:28]} 5. Nxd4 {[%emt 0:00:21]} exd4 {[%emt 0:00:07]} 6. Qxd4 {[%emt 0:00:11]} Be7 {[%emt 0:00:30]} 7. Nc3 {[%emt 0:00:13]} O-O {[%emt 0:00:11]} 8. Be3 {[%emt 0:00:14]} d6 {[%emt 0:00:30]} 9. O-O-O {[%emt 0:00:35]} Bd7 {[%emt 0:00:26]} 10. Bc4 {[%emt 0:00:20]} c6 {[%emt 0:00:26]} 11. f4 {[%emt 0:00:25]} c5 {[%emt 0:00:48]} 12. Qd3 {[%emt 0:00:12]} a6 {[%emt 0:00:23]} 13. e5 {[%emt 0:00:34]} Ng4 {[%emt 0:00:35]} 14. a3 {[%emt 0:00:44]} Nxe3 {[%emt 0:00:30]} 15. Qxe3 {[%emt 0:00:27]} dxe5 {[%emt 0:00:25]} 16. fxe5 {[%emt 0:00:12]} b5 {[%emt 0:00:18]} 17. Be2 {[%emt 0:00:26]} h6 {[%emt 0:01:07]} 18. d6 {[%emt 0:00:15]} Bg5 {[%emt 0:00:09]} 19. Qxg5 {[%emt 0:00:22]} Qxg5+ {[%emt 0:00:19]} 20. Kb1 {[%emt 0:00:14]} Qxe5 {[%emt 0:00:35]} 21. Bf3 {[%emt 0:00:19]} Rab8 {[%emt 0:00:47]} 22. Be4 {[%emt 0:00:34]} b4 {[%emt 0:01:02]} 23. Rhe1 {[%emt 0:00:04]} Qxh2 {[%emt 0:00:16]} 24. axb4 {[%emt 0:00:07]} cxb4 {[%emt 0:00:08]} 25. Na2 {[%emt 0:00:29]} b3 {[%emt 0:00:35]} 26. cxb3 {[%emt 0:00:18]} Rxb3 {[%emt 0:01:13]} 27. Bc2 {[%emt 0:00:25]} Rbb8 {[%emt 0:00:05]} 28. Re7 {[%emt 0:00:11]} Bb5 {[%emt 0:00:46]} 29. d7 {[%emt 0:00:25]} Bxd7 {[%emt 0:00:09]} 30. Rexd7 {[%emt 0:00:12]} Qg3 {[%emt 0:00:09]} 31. R7d2 {[%emt 0:00:48]} Qa3 {[%emt 0:00:21]} 32. b3 {[%emt 0:00:15]} a5 {[%emt 0:00:41]} 33. Rd4 {[%emt 0:00:11]} a4 {[%emt 0:00:11]} 34. Rxa4 {[%emt 0:00:08]} Qxa4 {[%emt 0:00:08]} 35. Kb2 {[%emt 0:00:23]} Qa5 {[%emt 0:00:28]} 36. b4 {[%emt 0:00:35]} Qe5+ {[%emt 0:00:26]} 37. Kb1 {[%emt 0:00:29]} Qe6 {[%emt 0:00:42]} 38. Bd3 {[%emt 0:00:37]} Qg4 {[%emt 0:00:27]} 39. Rg1 {[%emt 0:00:18]} Qe6 {[%emt 0:00:46]} 40. b5 {[%emt 0:00:22]} Ra8 {[%emt 0:00:23]} 41. Nb4 {[%emt 0:00:58]} Qb3+ {[%emt 0:00:13]} 42. Kc1 {[%emt 0:00:15]} Qxb4 {[%emt 0:00:11]} 43. Rf1 {[%emt 0:00:45]} Rac8+ {[%emt 0:00:09]} 44. Kd1 {[%emt 0:00:13]} Rc7 {[%emt 0:00:32]} 45. Ke2 {[%emt 0:00:33]} Re7+ {[%emt 0:00:18]} 46. Kf3 {[%emt 0:00:39]} Qb3 {[%emt 0:00:13]} 47. Kf2 {[%emt 0:00:43]} Qxd3 {[%emt 0:00:08]} 48. b6 {[%emt 0:00:19]} Re6 {[%emt 0:00:11]} 49. b7 {[%emt 0:00:11]} Rf6+ {[%emt 0:00:04]} 50. Kg1 {[%emt 0:00:20]} Qe3+ {[%emt 0:00:16]} 51. Kh2 {[%emt 0:00:26]} Rxf1 {[%emt 0:00:08]} 52. g3 {[%emt 0:00:14]} Rf2+ {[%emt 0:00:18]} 53. Kh3 {[%emt 0:00:13]} Qe6+ {[%emt 0:00:10]} 54. g4 {[%emt 0:00:05]} Qe3+ {[%emt 0:00:35]} 55. Kh4 {[%emt 0:00:19]} Rh2# {[%emt 0:00:04]} 0-1

[Event "DVM U10 2024"]
[Site "Duesseldorf"]
[Date "2024.12.28"]
[Round "6"]
[White "Kresse, Andreas"]
[Black "Nordmann, Vigo"]
[Result "0-1"]
[ECO "C50"]
[WhiteElo "744"]
[BlackElo "831"]
[Annotator "NA RC"]
[PlyCount "40"]
[EventDate "2024.12.23"]
[EventType "team-tourn"]
[EventRounds "7"]
[EventCountry "GER"]
[SourceTitle "playchess.com"]
[Source "ChessBase"]
[SourceQuality "1"]
[TimeControl "3300+5"]

1. e4 {[%emt 0:00:02]} e5 {[%emt 0:00:10]} 2. Nf3 {[%emt 0:00:02]} Nc6 {[%emt 0:00:07]} 3. Bc4 {[%emt 0:00:07]} Bc5 {[%emt 0:00:37]} 4. Nc3 {[%emt 0:00:01]} Nf6 {[%emt 0:00:38]} 5. d3 {[%emt 0:00:08]} d6 {[%emt 0:00:18]} 6. Bg5 {[%emt 0:00:17]} Bg4 {[%emt 0:00:24]} 7. O-O {[%emt 0:00:26]} Nd4 {[%emt 0:00:10]} 8. h3 {[%emt 0:04:39]} Nxf3+ {[%emt 0:00:30]} 9. gxf3 {[%emt 0:00:24]} Bxh3 {[%emt 0:00:23]} 10. Re1 {[%emt 0:00:48]} Qd7 {[%emt 0:00:41]} 11. f4 {[%emt 0:01:47]} Bg4 {[%emt 0:01:36]} 12. Qd2 {[%emt 0:01:14]} Bf3 {[%emt 0:00:46]} 13. Kh2 {[%emt 0:00:53]} Qg4 {[%emt 0:00:20]} 14. Rg1 {[%emt 0:00:50]} Qh5+ {[%emt 0:02:15]} 15. Kg3 {[%emt 0:00:00]} Qg4+ {[%emt 0:01:17]} 16. Kh2 {[%emt 0:00:14]} Qh5+ {[%emt 0:01:07]} 17. Kg3 {[%emt 0:00:08]} h6 {[%emt 0:01:49]} 18. Bxf6 {[%emt 0:00:39]} gxf6 {[%emt 0:00:30]} 19. Rh1 {[%emt 0:00:16]} Qg4+ {[%emt 0:00:28]} 20. Kh2 {[%emt 0:00:16]} Qg2# {[%emt 0:00:38]} 0-1